bitfinex-derivatives/quotes_ETHF0:USTF0_20250726
["timestamp","ask_amount","ask_price","bid_price","bid_amount"]
[1753521472230,2.4524,3762.9,3762.8,13.57236]
[1753521472724,2.4524,3762.9,3762.7,23.49237]
[1753521472925,0.972,3762.9,3762.8,13.56736]
[1753521473529,2.4524,3762.9,3762.8,13.56736]
[1753521473723,2.4524,3762.9,3762.8,14.43316]
[1753521474119,2.4524,3762.9,3762.8,13.9018]
[1753521474418,2.4524,3762.9,3762.8,13.036]
[1753521475120,2.4524,3762.9,3762.8,13.9018]
[1753521475724,2.98374,3762.9,3762.8,13.9018]
[1753521476326,30.7423,3763.1,3762.7,22.961]
[1753521476327,2.98376,3762.8,3762.7,22.961]
[1753521476523,6.19156,3762.8,3762.7,22.961]
[1753521476728,2.9838,3762.5,3762.4,0.8658]
[1753521476929,2.4524,3762.0,3761.9,2.8306]
[1753521477128,2.4524,3762.0,3761.9,14.5381]
[1753521477424,2.98387,3762.0,3761.9,15.4039]
[1753521477626,2.98387,3762.0,3761.9,14.4699]
[1753521479030,2.98387,3762.0,3761.9,3.6964]
[1753521479232,2.98387,3762.0,3761.9,16.7274]
[1753521479528,2.4524,3762.0,3761.9,19.2706]
[1753521479729,2.98387,3762.0,3761.9,19.2706]
[1753521479922,2.98387,3762.0,3761.9,22.4784]
[1753521480227,11.5869,3762.0,3761.9,22.4784]
[1753521480530,25.0661,3762.2,3762.1,4.6823]
[1753521480722,25.0661,3762.2,3762.1,17.7113]
[1753521481033,25.59754,3762.2,3762.1,17.7123]
[1753521481227,25.59754,3762.2,3762.1,0.8491]
[1753521481420,25.59754,3762.2,3762.1,13.8781]
[1753521484028,25.59754,3762.2,3762.1,0.8491]
[1753521484227,25.59754,3762.2,3762.1,13.8761]
[1753521484428,25.59754,3762.2,3762.1,13.027]
[1753521485130,25.59754,3762.2,3762.1,13.8761]
[1753521486031,25.59754,3762.2,3762.1,13.87097824]
[1753521486232,25.60434,3762.2,3762.1,13.87097824]
[1753521486530,33.81644,3762.2,3762.1,0.366]
[1753521486732,3.03685,3761.5,3761.4,0.5996]
[1753521486930,3.03685,3761.5,3761.4,15.889]
[1753521487526,3.03685,3761.5,3761.4,1.5027]
[1753521487734,3.03685,3761.5,3761.4,14.5257]
[1753521487928,3.03685,3761.5,3761.4,1.5027]
[1753521487929,12.7297,3761.5,3761.4,1.5027]
[1753521488132,3.03684,3761.5,3761.4,13.8721]
[1753521488633,25.13304,3761.5,3761.4,13.8721]
[1753521489430,25.13304,3761.5,3761.4,0.8491]
[1753521491229,25.13304,3761.5,3761.4,1.4487]
[1753521491432,25.13304,3761.5,3761.4,2.811]
[1753521492237,25.13304,3761.5,3761.4,3.7141]
[1753521492536,25.13304,3761.5,3761.4,0.8491]
[1753521494739,1.5502,3761.1,3761.0,13.8681]
[1753521494941,3.0369,3761.1,3761.0,13.8681]
[1753521495130,3.0369,3761.1,3761.0,0.8491]
[1753521497242,3.03696,3760.7,3760.6,16.7321]
[1753521497540,3.03696,3760.7,3760.6,19.145]
[1753521498144,3.03696,3760.7,3760.6,6.127]
[1753521498643,30.6563,3760.7,3760.6,6.65867]
[1753521498838,2.5053,3760.7,3760.6,6.65867]
[1753521499032,3.03696,3760.7,3760.6,6.127]
[1753521499239,29.86406,3760.7,3760.6,6.127]
[1753521501045,26.8271,3760.7,3760.6,6.127]
[1753521501237,27.35876,3760.7,3760.6,6.127]
[1753521501736,28.84546,3760.7,3760.6,6.127]
[1753521501935,29.86406,3760.7,3760.6,6.127]
[1753521507447,29.3324,3760.7,3760.6,6.127]
[1753521512045,29.3324,3760.7,3760.6,2.3518]
[1753521512245,29.3324,3760.7,3760.6,0.8491]
[1753521512246,33.07186,3760.7,3760.6,0.8491]
[1753521512649,0.53174,3760.2,3760.1,15.83]
[1753521512958,0.53175,3760.0,3759.9,15.2539]
[1753521513254,3.12275,3760.0,3759.9,0.9077]
[1753521514651,28.48895,3760.0,3759.9,0.9077]
[1753521520658,28.48895,3760.0,3759.9,1.4828]
[1753521520964,28.48895,3760.0,3759.9,3.7337]
[1753521521464,28.48895,3760.0,3759.9,6.1435]
[1753521523164,3.12277,3759.9,3759.8,5.43261636]
[1753521523764,3.12277,3759.9,3759.8,6.34031636]
[1753521524967,25.3662,3760.0,3759.8,6.34031636]
[1753521525265,0.53177,3759.9,3759.8,2.65011636]
[1753521525765,25.89796,3760.0,3759.8,6.34031636]
[1753521525960,25.3662,3760.0,3759.9,3.6902]
[1753521526171,25.89795,3760.0,3759.9,6.1435]
[1753521526357,25.3662,3760.0,3759.9,6.1435]
[1753521527369,25.89795,3760.0,3759.9,6.1435]
[1753521527866,27.45925,3760.0,3759.9,6.1435]
[1753521529366,26.9275,3760.0,3759.9,6.1435]
[1753521530270,28.48895,3760.0,3759.9,6.1435]
[1753521530770,27.9572,3760.0,3759.9,6.1435]
[1753521531268,27.9572,3760.0,3759.9,6.67527]
[1753521532167,27.9572,3760.0,3759.9,6.1435]
[1753521532369,27.9572,3760.0,3759.9,6.67527]
[1753521534063,27.9572,3760.0,3759.9,6.1435]
[1753521534470,28.48895,3760.0,3759.9,6.1435]
[1753521534665,28.48895,3760.0,3759.9,2.4111]
[1753521534863,28.48895,3760.0,3759.9,0.9077]
[1753521535767,1.56147,3759.9,3759.8,0.19681636]
[1753521536070,6.33057,3759.9,3759.8,1.10451636]
[1753521536266,35.98017,3759.9,3759.8,1.10451636]
[1753521537765,36.26387282,3759.9,3759.8,1.10451636]
[1753521538172,35.98017,3759.9,3759.8,1.10451636]
[1753521538372,36.7222871,3759.9,3759.8,1.10451636]
[1753521538766,37.0059505,3759.9,3759.8,1.10451636]
[1753521539069,37.0059505,3759.9,3759.8,0.19681636]
[1753521539264,36.7222871,3759.9,3759.8,0.19681636]
[1753521539565,42.00589618,3759.9,3759.8,0.19681636]
[1753521539966,42.00989618,3759.9,3759.8,0.19431636]
[1753521540161,42.00989618,3759.9,3759.8,6.36e-06]
[1753521540469,2.4527,3759.4,3759.3,0.8639]
[1753521540659,19.17234,3759.4,3759.3,0.8639]
[1753521540860,41.60394,3759.4,3759.3,0.8639]
[1753521541063,2.98455,3759.3,3759.2,0.88252074]
[1753521541671,3.7269388,3759.3,3759.2,0.88252074]
[1753521542262,3.7269388,3759.3,3759.2,7.4e-07]
[1753521542770,42.8313388,3759.3,3759.2,7.4e-07]
[1753521542971,0.9805,3758.4,3758.3,3.8793]
[1753521543168,6.19098,3758.4,3758.3,3.8793]
[1753521543367,6.19098,3758.4,3758.3,5.4065]
[1753521543568,38.92038,3758.4,3758.3,6.2704]
[1753521544970,35.71258,3758.4,3758.3,6.2704]
[1753521545763,29.97528,3758.4,3758.3,10.01019]
[1753521545967,29.97528,3758.4,3758.3,9.4782]
[1753521546164,29.97528,3758.4,3758.3,6.2704]
[1753521546368,36.69496,3758.4,3758.3,6.2704]
[1753521546964,36.69496,3758.4,3758.3,3.8793]
[1753521547168,3.00861,3758.2,3758.1,4.9327]
[1753521547369,9.92751,3758.2,3758.1,6.2704]
[1753521547673,6.71971,3758.2,3758.1,6.2704]
[1753521548276,9.92751,3758.2,3758.1,6.2704]
[1753521549072,6.71971,3758.2,3758.1,6.2704]
[1753521550472,9.92751,3758.2,3758.1,6.2704]
[1753521550778,0.53201,3758.2,3758.1,6.2704]
[1753521551677,0.532,3758.3,3758.1,6.2704]
[1753521551878,0.53201,3758.2,3758.1,2.5416]
[1753521552479,0.53201,3758.2,3758.1,6.2704]
[1753521553874,1.11061,3758.2,3758.1,6.2704]
[1753521554080,3.43181,3758.2,3758.1,6.2704]
[1753521555681,2.8998,3758.2,3758.1,6.2704]
[1753521555881,3.43181,3758.2,3758.1,6.2704]
[1753521558380,0.5786,3758.2,3758.1,6.2704]
[1753521558883,1.11061,3758.2,3758.1,6.2704]
[1753521559073,5.79981,3758.2,3758.1,6.2704]
[1753521560684,6.71971,3758.2,3758.1,6.2704]
[1753521562880,9.92751,3758.2,3758.1,6.2704]
[1753521563886,9.92751,3758.2,3758.1,6.27436995]
[1753521564386,9.92751,3758.2,3758.1,0.89176995]
[1753521564789,9.92751,3758.2,3758.1,6.27436995]
[1753521569287,10.68349528,3758.2,3758.1,6.27436995]
[1753521571790,7.47569528,3758.2,3758.1,6.27436995]
[1753521575803,0.75598528,3758.2,3758.1,6.80638995]
[1753521577397,29.97528,3758.4,3758.3,6.60179]
[1753521578303,11.97168,3758.4,3758.3,11.60179]
[1753521578495,8.81998,3758.4,3758.3,11.60179]
[1753521578896,0.8591,3758.9,3758.7,0.53193]
[1753521579092,15.0172,3758.5,3758.1,3.21176995]
[1753521579298,15.0172,3758.5,3758.4,0.53197]
[1753521579501,0.8591,3759.1,3759.0,0.53189]
[1753521579796,0.8591,3759.1,3759.0,13.48389]
[1753521580000,10.4302,3759.1,3759.0,18.48389]
[1753521580399,10.4302,3759.1,3759.0,13.48389]
[1753521580596,10.4302,3759.1,3759.0,18.48389]
[1753521580999,9.5711,3759.1,3759.0,18.48389]
[1753521581398,0.8591,3759.5,3759.3,0.53185]
[1753521581598,24.3351,3759.4,3759.3,0.53185]
[1753521583809,24.3351,3759.4,3759.3,5.53185]
[1753521584407,24.3351,3759.4,3759.3,0.53185]
[1753521587613,24.3351,3759.4,3759.3,5.53185]
[1753521589717,25.8147,3759.4,3759.3,5.53185]
[1753521590120,29.6185,3759.4,3759.3,0.53185]
[1753521590321,29.6185,3759.4,3759.3,13.47085]
[1753521590717,29.6185,3759.4,3759.3,0.53185]
[1753521591019,29.6185,3759.4,3759.3,13.47085]
[1753521591418,25.8147,3759.4,3759.3,13.47085]
[1753521591612,24.3351,3759.4,3759.3,13.47085]
[1753521591814,23.476,3759.4,3759.3,18.47085]
[1753521593121,23.476,3759.4,3759.3,13.47085]
[1753521593122,24.3351,3759.4,3759.3,13.47085]
[1753521593326,29.6185,3759.4,3759.3,0.53185]
[1753521593624,29.6185,3759.4,3759.3,13.46785]
[1753521595326,29.6185,3759.4,3759.3,0.53185]
[1753521595520,29.6185,3759.4,3759.3,13.46585]
[1753521595720,29.6185,3759.4,3759.2,0.53186]
[1753521595915,25.9934,3759.4,3759.3,12.934]
[1753521596225,25.9934,3759.4,3759.3,12.933]
[1753521596421,29.6185,3759.4,3759.3,12.933]
[1753521597315,29.6185,3759.4,3759.3,13.46485]
[1753521601124,25.8147,3759.4,3759.3,13.46485]
[1753521601520,2.91,3759.4,3759.3,13.46485]
[1753521601726,35.8001,3759.4,3759.3,13.46485]
[1753521602832,32.1923,3759.4,3759.3,13.45985]
[1753521603429,35.9017,3759.4,3759.3,13.45985]
[1753521605035,6.1522,3758.7,3758.6,26.72975]
[1753521605329,6.1522,3758.7,3758.6,39.65575]
[1753521607437,2.4403,3758.7,3758.6,39.65575]
[1753521609538,4.2807,3758.7,3758.6,39.65575]
[1753521609832,6.1522,3758.7,3758.6,39.65575]
[1753521610135,6.1522,3758.7,3758.6,26.72975]
[1753521610637,6.1522,3758.7,3758.6,26.1978]
[1753521610839,6.1522,3758.7,3758.6,39.1198]
[1753521611730,6.1522,3758.7,3758.1,3.21176995]
[1753521611928,6.1522,3758.3,3758.2,13.45401]
[1753521612741,19.2865,3758.3,3758.2,13.45401]
[1753521613636,19.2865,3758.3,3758.2,12.922]
[1753521613829,19.2865,3758.3,3758.2,13.45401]
[1753521616040,18.0174,3758.3,3758.2,13.45401]
[1753521616240,13.1343,3758.3,3758.2,13.45401]
[1753521616938,13.1343,3758.3,3758.2,18.45401]
[1753521617537,0.8916,3758.7,3758.6,0.53195]
[1753521617844,2.4403,3758.7,3758.6,3.73975]
[1753521618845,0.8916,3758.7,3758.6,3.73975]
[1753521619749,4.8831,3758.7,3758.6,3.73975]
[1753521619952,30.609,3758.7,3758.6,3.73975]
[1753521620449,24.4568,3758.7,3758.6,3.73975]
[1753521620651,24.4568,3758.7,3758.6,8.73975]
[1753521621851,25.3484,3758.7,3758.6,8.73975]
[1753521624254,26.8971,3758.7,3758.6,8.73975]
[1753521624458,26.8971,3758.7,3758.6,3.73975]
[1753521624650,30.609,3758.7,3758.6,3.73975]
[1753521625663,30.609,3758.7,3758.6,16.65275]
[1753521640565,30.609,3758.7,3758.6,13.44495]
[1753521640765,30.609,3758.7,3758.6,16.65275]
[1753521641162,30.609,3758.7,3758.6,16.65385]
[1753521641366,30.609,3758.7,3758.6,16.65975]
[1753521651270,30.609,3758.7,3758.6,16.65665]
[1753521651574,30.609,3758.7,3758.6,16.65975]
[1753521651872,30.609,3758.7,3758.6,16.65385]
[1753521652173,30.609,3758.7,3758.6,16.65275]
[1753521652369,30.609,3758.7,3758.6,16.65385]
[1753521652567,30.609,3758.7,3758.6,13.44495]
[1753521653066,30.609,3758.7,3758.6,12.913]
[1753521653674,6.2198,3758.5,3758.4,22.984]
[1753521653871,6.2198,3758.5,3758.4,35.878]
[1753521654268,6.2198,3758.5,3758.4,36.40998]
[1753521654969,6.2198,3758.5,3758.4,35.878]
[1753521655369,6.2198,3758.5,3758.4,36.40998]
[1753521656464,6.2198,3758.5,3758.4,23.51598]
[1753521656667,6.2198,3758.5,3758.4,36.40798]
[1753521657671,6.2198,3758.5,3758.4,36.40908]
[1753521658273,6.2198,3758.5,3758.4,36.40698]
[1753521660170,6.2198,3758.5,3758.4,35.875]
[1753521660375,6.2198,3758.5,3758.4,36.40698]
[1753521660575,6.2198,3758.5,3758.4,35.875]
[1753521661085,6.2198,3758.5,3758.4,36.40698]
[1753521662782,6.2198,3758.5,3758.4,13.42298]
[1753521664182,6.2198,3758.5,3758.4,13.42448]
[1753521666380,6.2198,3758.5,3758.4,13.42298]
[1753521669586,6.2198,3758.5,3758.4,13.42448]
[1753521673291,6.2198,3758.5,3758.4,13.42298]
[1753521676497,6.2198,3758.5,3758.4,13.42448]
[1753521677998,6.2198,3758.5,3758.4,13.42618]
[1753521678706,6.2198,3758.5,3758.4,13.42778]
[1753521681702,6.2198,3758.5,3758.4,12.8925]
[1753521682002,6.2198,3758.5,3758.4,13.42298]
[1753521682301,6.2198,3758.5,3758.4,12.891]
[1753521682503,6.2198,3758.5,3758.4,13.42298]
[1753521683402,6.98883225,3758.5,3758.4,13.42298]
[1753521683803,6.98883225,3758.5,3758.4,13.42438]
[1753521684302,6.98883225,3758.5,3758.4,13.42598]
[1753521684703,6.98883225,3758.5,3758.4,13.42738]
[1753521684906,6.98883225,3758.5,3758.4,13.43218]
[1753521685806,6.2198,3758.5,3758.4,13.43218]
[1753521686006,6.98904018,3758.5,3758.4,13.43218]
[1753521688610,6.2198,3758.5,3758.4,0.54118]
[1753521689310,6.98920806,3758.5,3758.4,0.54118]
[1753521689511,6.2198,3758.5,3758.4,0.54118]
[1753521690112,6.2198,3758.5,3758.4,0.0092]
[1753521690513,6.2198,3758.5,3758.4,0.54118]
[1753521691314,6.9892162,3758.5,3758.4,0.54118]
[1753521691515,6.9892162,3758.5,3758.4,0.0028]
[1753521692209,6.9892162,3758.5,3758.4,0.53478]
[1753521696523,6.9892162,3758.5,3758.4,0.53738]
[1753521697125,6.2198,3758.5,3758.4,0.54268]
[1753521697317,24.4568,3758.7,3758.6,0.53195]
[1753521697318,25.3794,3758.7,3758.6,0.53195]
[1753521697618,24.4529,3758.7,3758.6,0.54895]
[1753521697820,24.4529,3758.7,3758.6,5.54895]
[1753521697821,24.4503,3758.7,3758.6,5.54895]
[1753521699222,23.20672,3758.7,3758.6,5.54895]
[1753521699418,21.77715,3758.7,3758.6,5.54895]
[1753521699924,21.04709,3758.7,3758.6,5.54895]
[1753521701524,19.83272,3758.7,3758.6,5.54895]
[1753521701820,19.17446,3758.7,3758.6,5.54895]
[1753521702031,18.53688,3758.7,3758.6,5.54895]
[1753521702324,17.24434,3758.7,3758.6,5.54895]
[1753521702526,16.04259,3758.7,3758.6,5.54895]
[1753521702728,15.43489,3758.7,3758.6,5.54895]
[1753521703327,16.35749,3758.7,3758.6,5.54895]
[1753521704832,16.35749,3758.7,3758.6,0.54895]
[1753521705033,21.57079,3758.7,3758.6,0.54745]
[1753521705232,21.57079,3758.7,3758.6,13.40645]
[1753521705635,21.57079,3758.7,3758.6,13.39335]
[1753521706130,21.57079,3758.7,3758.6,13.38995]
[1753521706328,21.57079,3758.7,3758.5,0.53196]
[1753521706529,6.1359,3758.6,3758.5,0.53196]
[1753521706834,6.1359,3758.6,3758.5,13.38996]
[1753521707029,15.43489,3758.7,3758.2,0.532]
[1753521707235,6.1359,3758.3,3758.2,0.532]
[1753521707430,6.1359,3758.3,3758.2,13.389]
[1753521707828,17.4062,3758.3,3758.2,13.389]
[1753521708736,17.4062,3758.3,3758.1,0.53202]
[1753521708939,17.4062,3758.3,3758.2,13.38901]
[1753521709844,17.4062,3758.3,3758.2,12.857]
[1753521710042,17.4062,3758.3,3758.2,13.38901]
[1753521710237,6.1359,3758.3,3758.2,13.38901]
[1753521710436,29.8723,3758.3,3758.2,13.38901]
[1753521712842,6.1359,3758.3,3758.2,13.38901]
[1753521716440,36.3914,3758.3,3758.2,13.38901]
[1753521721350,36.3914,3758.3,3758.2,12.857]
[1753521721542,36.3914,3758.3,3758.2,13.38901]
[1753521722558,36.3914,3758.3,3758.2,12.857]
[1753521723341,36.3875294,3758.3,3758.2,13.38901]
[1753521723546,36.3875294,3758.3,3758.2,12.857]
[1753521727147,36.3875294,3758.3,3758.2,13.38901]
[1753521728550,36.3875294,3758.3,3758.2,13.39221]
[1753521728851,2.4443,3758.1,3758.0,12.8482]
[1753521729051,6.164,3758.1,3758.0,13.38024]
[1753521729852,6.164,3758.1,3758.0,12.8482]
[1753521730048,5.6005,3757.8,3757.7,0.53527]
[1753521730248,6.164,3757.8,3757.7,13.37927]
[1753521730455,6.164,3757.8,3757.7,13.38437]
[1753521730852,33.3629,3757.8,3757.7,13.38437]
[1753521732657,33.3629,3757.8,3757.7,13.37927]
[1753521733957,33.3629,3757.8,3757.7,0.53527]
[1753521734261,2.4443,3757.6,3757.5,0.0032]
[1753521734452,6.164,3757.6,3757.5,12.8452]
[1753521734757,32.2141,3757.6,3757.5,12.8452]
[1753521735056,32.2141,3757.6,3757.5,13.37731]
[1753521735261,32.2141,3757.6,3757.5,13.38241]
[1753521736162,32.2141,3757.6,3757.5,0.54041]
[1753521736460,32.2141,3757.6,3757.5,13.38341]
[1753521748072,32.2141,3757.6,3757.5,13.37831]
[1753521748480,32.2141,3757.6,3757.5,12.8462]
[1753521748776,32.2141,3757.6,3757.5,12.843]
[1753521749280,32.2141,3757.6,3757.5,13.37831]
[1753521751377,32.2141,3757.6,3757.4,0.53212]
[1753521751581,32.1896,3757.6,3757.5,12.833]
[1753521751782,28.4944,3757.6,3757.3,0.53213]
[1753521751977,6.1953,3757.2,3757.1,0.0046]
[1753521752280,6.1953,3757.2,3757.1,12.8376]
[1753521752679,6.1953,3757.2,3757.1,10.8376]
[1753521752983,6.1953,3757.2,3757.1,11.36976]
[1753521753483,6.1953,3757.2,3757.1,11.37156]
[1753521753780,6.1953,3757.2,3757.1,11.37296]
[1753521755278,6.1953,3757.1,3757.0,0.0023]
[1753521755477,6.1953,3757.1,3757.0,12.8342]
[1753521755875,30.5969,3757.1,3757.0,12.8342]
[1753521757178,1.5054,3756.7,3756.6,3.47800441]
[1753521757378,6.1953,3756.7,3756.6,16.84123441]
[1753521757577,32.5011,3756.7,3756.6,16.84123441]
[1753521757772,32.5011,3756.7,3756.6,16.84213441]
[1753521758785,32.5011,3756.7,3756.6,16.57423]
[1753521759083,32.5011,3756.7,3756.6,16.57323]
[1753521760384,32.5011,3756.7,3756.6,16.57223]
[1753521763280,32.5011,3756.7,3756.6,3.74323]
[1753521763485,32.5011,3756.7,3756.6,16.57023]
[1753521763688,32.5011,3756.7,3756.6,16.038]
[1753521763881,32.5011,3756.7,3756.6,4.00587314]
[1753521764080,32.5011,3756.7,3756.6,16.83287314]
[1753521764486,32.5011,3756.7,3756.4,0.53225]
[1753521764687,6.1953,3756.5,3756.4,0.53225]
[1753521764886,6.1953,3756.5,3756.4,13.35925]
[1753521765483,6.1953,3756.5,3756.4,13.35825]
[1753521766780,27.1661,3756.7,3756.6,0.53223]
[1753521766988,26.3058,3756.7,3756.6,3.74003]
[1753521767188,26.3058,3756.7,3756.6,8.74003]
[1753521767590,24.25499536,3756.7,3756.6,8.74003]
[1753521767784,0.8603,3757.5,3757.4,0.53212]
[1753521767984,2.3172,3757.5,3757.4,13.35712]
[1753521768184,30.0991,3757.5,3757.4,13.35712]
[1753521768389,6.1953,3757.5,3757.4,13.35712]
[1753521769287,27.4654,3757.5,3757.4,13.35712]
[1753521770590,27.4654,3757.5,3757.4,0.53212]
[1753521771094,6.1953,3757.2,3757.1,23.52616]
[1753521771293,6.1953,3757.2,3757.1,36.34916]
[1753521771995,6.1953,3757.2,3757.1,35.817]
[1753521773389,6.1953,3757.2,3757.1,36.34816]
[1753521773595,6.1953,3757.2,3757.1,35.816]
[1753521773783,6.1953,3757.2,3757.1,22.994]
[1753521773984,6.1953,3757.2,3757.1,35.815]
[1753521774996,6.1953,3757.2,3757.1,36.34716]
[1753521775690,6.1953,3757.2,3757.1,23.52616]
[1753521775893,6.1953,3757.2,3757.1,36.34616]
[1753521776092,0.8603,3757.2,3757.1,36.34616]
[1753521776393,2.3172,3757.2,3757.1,36.34616]
[1753521776594,2.8837,3757.2,3757.1,36.34616]
[1753521776895,6.1953,3757.2,3757.1,36.34616]
[1753521779297,6.1953,3757.2,3757.1,36.34416]
[1753521779695,6.1953,3757.2,3757.1,36.34316]
[1753521779892,6.1953,3757.2,3757.1,23.52616]
[1753521780095,6.1953,3757.2,3757.1,36.34316]
[1753521780593,0.8603,3757.2,3757.1,36.34316]
[1753521781492,0.8603,3757.2,3757.1,13.34916]
[1753521781693,21.2701,3757.5,3757.4,0.53212]
[1753521781888,21.2701,3757.5,3757.4,13.34812]
[1753521782292,22.1795,3757.5,3757.4,13.34812]
[1753521784700,23.7024,3757.5,3757.4,13.34812]
[1753521784999,20.95656,3757.5,3757.4,13.34812]
[1753521785202,20.27386,3757.5,3757.4,16.55592]
[1753521785501,18.26261,3757.5,3757.4,16.55592]
[1753521785695,17.60407,3757.5,3757.4,16.55592]
[1753521786294,16.36498,3757.5,3757.4,16.55592]
[1753521786488,0.2895,3757.5,3757.4,16.55592]
[1753521786694,0.2895,3757.5,3757.4,17.75702]
[1753521787097,25.05672,3757.6,3757.5,0.53212]
[1753521787299,24.31615,3757.6,3757.5,1.11382]
[1753521787505,28.97828,3757.6,3757.5,1.98242]
[1753521788001,5.3134,3757.6,3757.5,1.98242]
[1753521789205,6.2228,3757.6,3757.5,14.79442]
[1753521789397,35.6246,3757.6,3757.5,14.79442]
[1753521789599,6.2228,3757.6,3757.5,14.79442]
[1753521790201,36.7879,3757.6,3757.5,14.79442]
[1753521790401,6.2228,3757.6,3757.5,14.79442]
[1753521791404,5.66078,3757.6,3757.5,16.25352]
[1753521791701,1.7553,3757.6,3757.5,16.25352]
[1753521791900,0.15269,3757.6,3757.5,17.94812]
[1753521792206,30.14,3757.8,3757.7,6.16769]
[1753521792609,31.492,3757.8,3757.7,6.16769]
[1753521793602,33.0149,3757.8,3757.7,6.16769]
[1753521794102,33.9243,3757.8,3757.7,6.16769]
[1753521805422,33.9243,3757.8,3757.7,18.97069]
[1753521811322,33.9243,3757.8,3757.7,41.95969]
[1753521815125,29.42766,3757.8,3757.7,41.95969]
[1753521815427,29.5522,3758.2,3757.9,5.6438]
[1753521815624,29.5522,3758.2,3758.1,9.38363]
[1753521815826,31.0108,3758.2,3758.1,9.38363]
[1753521816026,32.0167,3758.2,3758.1,9.38363]
[1753521816220,32.0167,3758.2,3758.1,4.32313]
[1753521816425,32.0167,3758.2,3758.1,13.32803]
[1753521818023,32.0167,3758.2,3758.1,13.91133]
[1753521818227,28.1429,3758.2,3758.1,18.97183]
[1753521818529,25.7966,3758.2,3758.1,18.97183]
[1753521821529,25.7966,3758.2,3758.1,22.17963]
[1753521822730,29.5522,3758.2,3758.1,22.17963]
[1753521823229,30.4447,3758.2,3758.1,22.17963]
[1753521823426,31.0108,3758.2,3758.1,22.17963]
[1753521823629,32.0167,3758.2,3758.1,22.17963]
[1753521824926,32.0167,3758.2,3758.1,9.38363]
[1753521825127,32.0167,3758.2,3758.1,22.17463]
[1753521827335,32.0167,3758.2,3758.1,8.44833]
[1753521827530,32.0167,3758.2,3758.1,16.52883]
[1753521828436,32.0167,3758.2,3758.1,3.73983]
[1753521828632,32.0167,3758.2,3758.1,16.52783]
[1753521829933,32.0167,3758.2,3758.1,0.53203]
[1753521830140,32.0167,3758.2,3757.7,27.8558]
[1753521830339,6.2201,3758.1,3758.0,0.53203]
[1753521830638,6.2201,3758.1,3757.9,0.53206]
[1753521830836,6.2201,3757.8,3757.7,26.72889]
[1753521831033,6.2201,3757.8,3757.7,39.51589]
[1753521832442,6.2201,3757.8,3757.7,22.989]
[1753521832635,6.2201,3757.8,3757.7,35.776]
[1753521833240,33.2995,3757.8,3757.7,35.776]
[1753521833440,33.2995,3757.8,3757.7,22.989]
[1753521833738,38.2995,3757.8,3757.2,0.53215]
[1753521833939,29.5439,3757.8,3757.3,12.786]
[1753521834138,29.5439,3757.8,3757.4,0.8904]
[1753521834339,30.07599,3757.8,3757.1,1.42257]
[1753521834539,3.2078,3757.7,3757.2,13.6764]
[1753521834746,3.2078,3757.7,3757.2,0.8904]
[1753521834933,0.53211,3757.6,3757.0,0.8904]
[1753521835132,0.53211,3757.6,3757.1,13.6764]
[1753521835743,0.53212,3757.5,3757.1,13.6764]
[1753521835936,22.24361,3757.6,3757.1,14.20857]
[1753521836133,0.53211,3757.6,3757.1,14.20857]
[1753521836340,26.1166,3757.3,3757.1,14.20857]
[1753521836538,26.3765,3757.4,3757.1,0.53217]
[1753521836738,26.3765,3757.4,3757.2,13.6764]
[1753521836943,0.53211,3757.6,3757.2,13.6764]
[1753521837140,26.3299,3757.3,3757.2,14.20856]
[1753521837341,0.53212,3757.5,3757.2,13.6764]
[1753521837842,26.5055,3757.4,3757.2,13.6764]
[1753521838840,3.73995,3757.3,3757.2,13.6764]
[1753521839145,3.2078,3757.3,3757.2,13.6764]
[1753521839643,3.2078,3757.3,3757.2,14.20856]
[1753521839842,3.2078,3757.3,3757.2,15.192]
[1753521840145,3.2078,3757.3,3757.2,15.72416]
[1753521840436,3.73995,3757.3,3757.2,13.6764]
[1753521841241,3.73995,3757.3,3757.2,0.8904]
[1753521841443,3.73995,3757.3,3757.2,13.6764]
[1753521843441,3.2078,3757.3,3757.2,13.6764]
[1753521843648,3.2078,3757.3,3757.2,15.1109]
[1753521843943,3.2078,3757.3,3757.2,16.9751]
[1753521844341,3.73995,3757.3,3757.2,16.9751]
[1753521844743,3.73995,3757.3,3757.2,6.0453]
[1753521844942,3.73995,3757.3,3757.2,18.8303]
[1753521845449,3.73995,3757.3,3757.2,17.5494]
[1753521846838,3.73995,3757.3,3757.2,4.7644]
[1753521847041,0.5322,3756.9,3756.8,1.4345]
[1753521847238,0.5322,3757.0,3756.9,6.065]
[1753521847449,3.73995,3757.3,3757.2,6.065]
[1753521847842,3.73995,3757.3,3757.2,18.848]
[1753521849148,3.73995,3757.3,3757.2,17.5671]
[1753521849540,3.73995,3757.3,3757.2,2.9279]
[1753521849745,3.73995,3757.3,3757.2,15.7119]
[1753521850448,3.73995,3757.3,3757.2,13.6635]
[1753521850948,3.73995,3757.3,3757.2,0.8805]
[1753521851248,3.73995,3757.3,3757.2,13.6635]
[1753521852945,8.73995,3757.3,3757.2,13.6625]
[1753521853351,3.73995,3757.3,3757.2,13.6625]
[1753521853946,3.73995,3757.3,3757.2,15.097]
[1753521855246,3.73995,3757.3,3757.2,2.315]
[1753521856152,8.2078,3757.3,3757.0,0.8805]
[1753521856341,0.53217,3757.1,3757.0,13.6615]
[1753521856743,0.53217,3757.1,3757.0,12.781]